[Event "Rapid Tournament (RAP)"]
[Site "Biel, Switzerland"]
[Date "2026.07.12"]
[Round "3.41"]
[White "Materia, Mario"]
[Black "Belmadani, Naim"]
[Result "1-0"]
[TimeControl "15 + 5"]
[WhiteTitle "-"]
[BlackTitle "-"]
[WhiteFideId "651082241"]
[BlackFideId "1354302"]
[WhiteElo "1914"]
[BlackElo "1758"]

1. d4 {[%clk 00:15:09]} {[%emt 00:00:02]} Nf6 {[%clk 00:13:48]} {[%emt
00:01:21]} 2. c4 {[%clk 00:15:11]} {[%emt 00:00:04]} c5 {[%clk 00:13:51]}
{[%emt 00:00:01]} 3. d5 {[%clk 00:15:14]} {[%emt 00:00:02]} e6 {[%clk
00:13:56]} {[%emt 00:00:01]} 4. Nc3 {[%clk 00:15:14]} {[%emt 00:00:05]} exd5
{[%clk 00:13:59]} {[%emt 00:00:02]} 5. cxd5 {[%clk 00:15:17]} {[%emt 00:00:02]}
d6 {[%clk 00:14:03]} {[%emt 00:00:01]} 6. e4 {[%clk 00:15:14]} {[%emt
00:00:08]} g6 {[%clk 00:14:07]} {[%emt 00:00:01]} 7. Nf3 {[%clk 00:15:06]}
{[%emt 00:00:13]} Bg4 {[%clk 00:14:08]} {[%emt 00:00:04]} 8. Bd3 {[%clk
00:14:59]} {[%emt 00:00:12]} Bg7 {[%clk 00:14:04]} {[%emt 00:00:08]} 9. h3
{[%clk 00:14:54]} {[%emt 00:00:11]} Bxf3 {[%clk 00:14:08]} {[%emt 00:00:01]} 10.
Qxf3 {[%clk 00:14:57]} {[%emt 00:00:01]} O-O {[%clk 00:14:04]} {[%emt
00:00:10]} 11. O-O {[%clk 00:15:00]} {[%emt 00:00:02]} a6 {[%clk 00:14:07]}
{[%emt 00:00:02]} 12. a4 {[%clk 00:15:03]} {[%emt 00:00:02]} Nbd7 {[%clk
00:14:10]} 13. Bf4 {[%clk 00:15:07]} {[%emt 00:00:02]} Nb6 {[%clk 00:12:27]}
{[%emt 00:01:48]} 14. a5 {[%clk 00:14:50]} {[%emt 00:00:22]} Nc8 {[%clk
00:12:30]} 15. Qe2 {[%clk 00:14:45]} {[%emt 00:00:10]} Re8 {[%clk 00:12:22]}
{[%emt 00:00:13]} 16. Bh2 {[%clk 00:14:38]} {[%emt 00:00:12]} Nd7 {[%clk
00:11:47]} {[%emt 00:00:40]} 17. f4 {[%clk 00:14:18]} {[%emt 00:00:26]} Bd4+
{[%clk 00:11:48]} {[%emt 00:00:04]} 18. Kh1 {[%clk 00:14:21]} {[%emt 00:00:02]}
Nf6 {[%clk 00:11:30]} {[%emt 00:00:23]} 19. Qf3 {[%clk 00:13:35]} {[%emt
00:00:51]} Nh5 {[%clk 00:10:21]} {[%emt 00:01:12]} 20. g4 {[%clk 00:13:22]}
{[%emt 00:00:18]} Ng7 {[%clk 00:10:11]} {[%emt 00:00:16]} 21. Bg1 {[%clk
00:13:19]} {[%emt 00:00:09]} Bxg1 {[%clk 00:09:53]} {[%emt 00:00:22]} 22. Rxg1
{[%clk 00:12:21]} {[%emt 00:01:02]} Qf6 {[%clk 00:09:39]} {[%emt 00:00:19]} 23.
Qe3 {[%clk 00:11:39]} {[%emt 00:00:49]} Na7 {[%clk 00:08:29]} {[%emt 00:01:15]}
24. g5 {[%clk 00:11:00]} {[%emt 00:00:43]} Qe7 {[%clk 00:08:17]} {[%emt
00:00:17]} 25. Qf3 {[%clk 00:10:13]} {[%emt 00:00:53]} Nh5 {[%clk 00:08:08]}
{[%emt 00:00:13]} 26. Rge1 {[%clk 00:09:15]} {[%emt 00:01:02]} Qd7 {[%clk
00:07:46]} {[%emt 00:00:27]} 27. Na4 {[%clk 00:08:24]} {[%emt 00:00:58]} Nxf4
{[%clk 00:06:20]} {[%emt 00:01:30]} 28. Nb6 {[%clk 00:07:16]} {[%emt 00:01:14]}
Qxh3+ {[%clk 00:06:12]} {[%emt 00:00:12]} 29. Qxh3 {[%clk 00:07:19]} {[%emt
00:00:03]} Nxh3 {[%clk 00:06:16]} {[%emt 00:00:01]} 30. Nxa8 {[%clk 00:06:56]}
{[%emt 00:00:28]} Nf2+ {[%clk 00:06:17]} {[%emt 00:00:03]} 31. Kg1 {[%clk
00:06:25]} {[%emt 00:00:36]} Nxd3 {[%clk 00:06:21]} {[%emt 00:00:01]} 32. Re3
{[%clk 00:06:29]} {[%emt 00:00:01]} Rxa8 {[%clk 00:05:55]} {[%emt 00:00:32]} 33.
Rxd3 {[%clk 00:06:30]} {[%emt 00:00:03]} Nb5 {[%clk 00:05:39]} {[%emt
00:00:21]} 34. Rf3 {[%clk 00:06:11]} {[%emt 00:00:24]} Re8 {[%clk 00:05:28]}
{[%emt 00:00:17]} 35. Re1 {[%clk 00:05:37]} {[%emt 00:00:39]} Nd4 {[%clk
00:05:16]} {[%emt 00:00:16]} 36. Rf6 {[%clk 00:05:02]} {[%emt 00:00:39]} Re5
{[%clk 00:05:08]} {[%emt 00:00:14]} 37. Ref1 {[%clk 00:04:36]} {[%emt
00:00:31]} Rxg5+ {[%clk 00:05:00]} {[%emt 00:00:13]} 38. Kf2 {[%clk 00:04:09]}
{[%emt 00:00:32]} Re5 {[%clk 00:04:12]} {[%emt 00:00:52]} 39. Rxd6 {[%clk
00:03:34]} {[%emt 00:00:42]} Rxe4 {[%clk 00:04:12]} {[%emt 00:00:04]} 40. Rd7
{[%clk 00:03:11]} {[%emt 00:00:30]} Rf4+ {[%clk 00:03:14]} {[%emt 00:01:01]} 41.
Kg2 {[%clk 00:03:09]} {[%emt 00:00:07]} Rg4+ {[%clk 00:03:02]} {[%emt
00:00:17]} 42. Kh3 {[%clk 00:02:46]} {[%emt 00:00:29]} f5 {[%clk 00:02:30]}
{[%emt 00:00:36]} 43. Re1 {[%clk 00:02:41]} {[%emt 00:00:11]} Re4 {[%clk
00:01:36]} {[%emt 00:00:59]} 44. Rxe4 {[%clk 00:02:36]} {[%emt 00:00:10]} fxe4
{[%clk 00:01:39]} {[%emt 00:00:02]} 45. Re7 {[%clk 00:02:35]} {[%emt 00:00:06]}
Ne2 {[%clk 00:01:09]} {[%emt 00:00:34]} 46. Rxe4 {[%clk 00:02:06]} {[%emt
00:00:35]} Nd4 {[%clk 00:00:47]} {[%emt 00:00:27]} 47. d6 {[%clk 00:02:08]}
{[%emt 00:00:03]} Kf7 {[%clk 00:00:30]} {[%emt 00:00:21]} 48. Re7+ {[%clk
00:01:57]} {[%emt 00:00:16]} Kf6 {[%clk 00:00:18]} {[%emt 00:00:17]} 49. Rxh7
{[%clk 00:01:55]} {[%emt 00:00:07]} Ke6 {[%clk 00:00:18]} {[%emt 00:00:05]} 50.
Rxb7 {[%clk 00:01:26]} {[%emt 00:00:35]} Nc6 {[%clk 00:00:07]} {[%emt
00:00:16]} 51. d7 {[%clk 00:01:24]} {[%emt 00:00:07]} Nd8 {[%clk 00:00:08]}
{[%emt 00:00:03]} 52. Rb6+ {[%clk 00:01:24]} {[%emt 00:00:05]} Kxd7 {[%clk
00:00:12]} 53. Rxg6 {[%clk 00:01:25]} {[%emt 00:00:05]} Nc6 {[%clk 00:00:16]}
{[%emt 00:00:01]} 54. Kg2 {[%clk 00:01:01]} {[%emt 00:00:29]} Nxa5 {[%clk
00:00:20]} {[%emt 00:00:01]} 55. Rxa6 {[%clk 00:01:00]} {[%emt 00:00:06]} Nc4
{[%clk 00:00:21]} {[%emt 00:00:04]} 56. Ra2 {[%clk 00:00:56]} {[%emt 00:00:09]}
Kd6 {[%clk 00:00:21]} {[%emt 00:00:06]} 57. Kf3 {[%clk 00:00:52]} {[%emt
00:00:03]} Ne5+ {[%clk 00:00:13]} {[%emt 00:00:17]} 58. Ke4 {[%clk 00:00:55]}
{[%emt 00:00:04]} Nc6 {[%clk 00:00:10]} {[%emt 00:00:08]} 59. Ra1 {[%clk
00:00:46]} {[%emt 00:00:14]} Nb4 {[%clk 00:00:06]} {[%emt 00:00:09]} 60. Rd1+
{[%clk 00:00:41]} {[%emt 00:00:09]} Kc6 {[%clk 00:00:10]} {[%emt 00:00:01]} 61.
Ke5 {[%clk 00:00:45]} {[%emt 00:00:02]} Kb5 {[%clk 00:00:15]} 62. Rd2 {[%clk
00:00:24]} {[%emt 00:00:25]} Kc4 {[%clk 00:00:18]} {[%emt 00:00:02]} 63. Ke4
{[%clk 00:00:20]} {[%emt 00:00:10]} Kb3 {[%clk 00:00:17]} {[%emt 00:00:03]} 64.
Ke3 {[%clk 00:00:18]} {[%emt 00:00:09]} Nc2 {[%clk 00:00:15]} {[%emt 00:00:06]}
65. Kd3 {[%clk 00:00:08]} {[%emt 00:00:16]} Nb4 {[%clk 00:00:19]} {[%emt
00:00:01]} 66. Ke2 {[%clk 00:00:10]} {[%emt 00:00:03]} c4 {[%clk 00:00:18]}
{[%emt 00:00:06]} 67. Kd1 {[%clk 00:00:10]} {[%emt 00:00:05]} Nd3 {[%clk
00:00:20]} {[%emt 00:00:03]} 68. Rh2 {[%clk 00:00:09]} {[%emt 00:00:06]} Nxb2+
{[%clk 00:00:23]} {[%emt 00:00:02]} 69. Kc1 {[%clk 00:00:13]} Nd3+ {[%clk
00:00:26]} {[%emt 00:00:01]} 70. Kd2 {[%clk 00:00:09]} {[%emt 00:00:09]} Nb4
{[%clk 00:00:23]} {[%emt 00:00:09]} 71. Rh3+ {[%clk 00:00:13]} {[%emt
00:00:01]} Kb2 {[%clk 00:00:27]} 72. Rc3 {[%clk 00:00:14]} {[%emt 00:00:03]}
Nd5 {[%clk 00:00:13]} {[%emt 00:00:19]} 73. Rxc4 {[%clk 00:00:18]} {[%emt
00:00:02]} Kb3 {[%clk 00:00:15]} {[%emt 00:00:03]} 74. Rc8 {[%clk 00:00:11]}
{[%emt 00:00:11]} Kb4 {[%clk 00:00:15]} {[%emt 00:00:05]} 75. Kd3 {[%clk
00:00:12]} {[%emt 00:00:05]} Nf4+ {[%clk 00:00:17]} {[%emt 00:00:02]} 76. Ke4
{[%clk 00:00:14]} {[%emt 00:00:03]} Ne6 {[%clk 00:00:20]} {[%emt 00:00:02]} 77.
Ke5 {[%clk 00:00:17]} {[%emt 00:00:03]} Nc5 {[%clk 00:00:23]} {[%emt 00:00:02]}
78. Kd5 {[%clk 00:00:18]} {[%emt 00:00:03]} Nd3 {[%clk 00:00:25]} {[%emt
00:00:02]} 79. Kd4 {[%emt 00:00:05]} Nb2 {[%clk 00:00:19]} {[%emt 00:00:10]} 80.
Rb8+ {[%clk 00:00:23]} {[%emt 00:00:02]} Ka3 {[%clk 00:00:20]} {[%emt
00:00:04]} 81. Kc3 {[%clk 00:00:25]} {[%emt 00:00:03]} Na4 {[%clk 00:00:22]}
{[%emt 00:00:04]} 82. Kc2 {[%clk 00:00:26]} {[%emt 00:00:04]} Nc5 {[%clk
00:00:19]} {[%emt 00:00:07]} 83. Rb5 {[%clk 00:00:27]} {[%emt 00:00:04]} Ne4
{[%clk 00:00:17]} {[%emt 00:00:07]} 84. Rb8 {[%clk 00:00:16]} {[%emt 00:00:17]}
Nc5 {[%clk 00:00:18]} {[%emt 00:00:03]} 85. Kc3 {[%clk 00:00:18]} {[%emt
00:00:04]} Ka4 {[%clk 00:00:19]} {[%emt 00:00:03]} 86. Rb4+ {[%clk 00:00:18]}
{[%emt 00:00:05]} Ka5 {[%clk 00:00:21]} {[%emt 00:00:03]} 87. Kc4 {[%clk
00:00:19]} {[%emt 00:00:05]} Na6 {[%clk 00:00:09]} {[%emt 00:00:17]} 88. Rb7
{[%clk 00:00:16]} {[%emt 00:00:07]} Ka4 {[%clk 00:00:06]} {[%emt 00:00:09]} 89.
Ra7 {[%clk 00:00:09]} {[%emt 00:00:12]} Ka5 {[%clk 00:00:10]} {[%emt 00:00:01]}
90. Rb7 {[%clk 00:00:11]} {[%emt 00:00:03]} Ka4 {[%clk 00:00:11]} {[%emt
00:00:04]} 91. Kc3 {[%clk 00:00:09]} {[%emt 00:00:07]} Nc5 {[%clk 00:00:13]}
{[%emt 00:00:03]} 92. Rb8 {[%clk 00:00:10]} {[%emt 00:00:04]} Ka5 {[%clk
00:00:13]} {[%emt 00:00:04]} 93. Kc4 {[%clk 00:00:13]} {[%emt 00:00:03]} Nd7
{[%clk 00:00:12]} {[%emt 00:00:06]} 94. Rb7 {[%clk 00:00:10]} {[%emt 00:00:08]}
Nb6+ {[%clk 00:00:15]} 95. Kc5 {[%clk 00:00:10]} {[%emt 00:00:05]} Na4 {[%clk
00:00:14]} {[%emt 00:00:06]} 96. Kc6 {[%clk 00:00:11]} {[%emt 00:00:05]} Nc3
{[%clk 00:00:13]} {[%emt 00:00:05]} 97. Rb6 {[%clk 00:00:12]} {[%emt 00:00:05]}
Ka4 {[%clk 00:00:09]} {[%emt 00:00:09]} 98. Kc5 {[%clk 00:00:12]} {[%emt
00:00:03]} Ne4+ {[%clk 00:00:07]} {[%emt 00:00:08]} 99. Kc4 {[%clk 00:00:11]}
{[%emt 00:00:07]} Nd2 {[%clk 00:00:11]} {[%emt 00:00:01]} 100. Kd3 {[%clk
00:00:12]} {[%emt 00:00:04]} Nb3 {[%clk 00:00:12]} {[%emt 00:00:03]} 101. Kc3
{[%clk 00:00:13]} {[%emt 00:00:04]} Nc5 {[%clk 00:00:09]} {[%emt 00:00:09]} 102.
Rb4+ {[%clk 00:00:12]} {[%emt 00:00:06]} Ka5 {[%clk 00:00:11]} {[%emt
00:00:03]} 103. Kc4 {[%clk 00:00:15]} {[%emt 00:00:02]} Nd7 {[%clk 00:00:06]}
{[%emt 00:00:09]} 104. Rb7 {[%clk 00:00:16]} {[%emt 00:00:04]} Nb6+ {[%clk
00:00:09]} {[%emt 00:00:02]} 105. Kc5 {[%clk 00:00:15]} {[%emt 00:00:06]} Na4
{[%clk 00:00:13]} {[%emt 00:00:01]} 106. Kc6 {[%clk 00:00:18]} {[%emt
00:00:03]} Nc3 {[%clk 00:00:13]} {[%emt 00:00:05]} 107. Rb3 {[%clk 00:00:08]}
{[%emt 00:00:13]} Ne4 {[%clk 00:00:07]} {[%emt 00:00:12]} 108. Kd5 {[%clk
00:00:10]} {[%emt 00:00:04]} Nd2 {[%clk 00:00:09]} {[%emt 00:00:03]} 109. Rb2
{[%clk 00:00:13]} {[%emt 00:00:02]} Nf3 {[%clk 00:00:06]} {[%emt 00:00:07]} 110.
Kc5 {[%clk 00:00:12]} {[%emt 00:00:06]} Ka4 {[%clk 00:00:10]} 111. Rb4+ {[%clk
00:00:15]} {[%emt 00:00:02]} Ka3 {[%clk 00:00:14]} {[%emt 00:00:02]} 112. Kc4
{[%clk 00:00:18]} {[%emt 00:00:01]} Nd2+ {[%clk 00:00:17]} {[%emt 00:00:03]}
113. Kc3 {[%clk 00:00:22]} Nf3 {[%clk 00:00:08]} {[%emt 00:00:14]} 114. Rf4
{[%clk 00:00:26]} {[%emt 00:00:01]} 1-0

[Event "Rapid Tournament (RAP)"]
[Site "Biel, Switzerland"]
[Date "2026.07.12"]
[Round "3.42"]
[White "Hardt, Winfried"]
[Black "Ivarsson, Anders"]
[Result "0-1"]
[TimeControl "15 + 5"]
[WhiteTitle "-"]
[BlackTitle "-"]
[WhiteFideId "1309293"]
[BlackFideId "1768158"]
[WhiteElo "1738"]
[BlackElo "1907"]

1. e4 {[%clk 00:15:07]} {[%emt 00:00:02]} c5 {[%clk 00:15:10]} 2. d4 {[%clk
00:15:09]} {[%emt 00:00:04]} cxd4 {[%clk 00:15:12]} {[%emt 00:00:01]} 3. Qxd4
{[%clk 00:15:13]} {[%emt 00:00:02]} Nc6 {[%clk 00:15:16]} {[%emt 00:00:01]} 4.
Qd3 {[%clk 00:15:17]} {[%emt 00:00:03]} g6 {[%clk 00:14:59]} {[%emt 00:00:20]}
5. Nf3 {[%clk 00:14:30]} {[%emt 00:00:51]} Bg7 {[%clk 00:15:01]} {[%emt
00:00:03]} 6. Be2 {[%clk 00:14:27]} {[%emt 00:00:08]} d6 {[%clk 00:14:26]}
{[%emt 00:00:41]} 7. c3 {[%clk 00:14:23]} {[%emt 00:00:09]} Nf6 {[%clk
00:14:23]} {[%emt 00:00:07]} 8. h3 {[%clk 00:14:04]} {[%emt 00:00:23]} O-O
{[%clk 00:14:24]} {[%emt 00:00:04]} 9. Be3 {[%clk 00:13:27]} {[%emt 00:00:43]}
Ne8 {[%clk 00:14:20]} {[%emt 00:00:08]} 10. Qd2 {[%clk 00:13:09]} {[%emt
00:00:23]} f5 {[%clk 00:13:34]} {[%emt 00:00:51]} 11. Bc4+ {[%clk 00:11:15]}
{[%emt 00:01:59]} e6 {[%clk 00:13:24]} {[%emt 00:00:15]} 12. exf5 {[%clk
00:10:37]} {[%emt 00:00:43]} gxf5 {[%clk 00:13:21]} {[%emt 00:00:09]} 13. Ng5
{[%clk 00:10:09]} {[%emt 00:00:32]} d5 {[%clk 00:13:17]} {[%emt 00:00:09]} 14.
Bb3 {[%clk 00:09:58]} {[%emt 00:00:16]} b6 {[%clk 00:12:25]} {[%emt 00:00:58]}
15. Na3 {[%clk 00:09:38]} {[%emt 00:00:25]} a6 {[%clk 00:11:40]} {[%emt
00:00:50]} 16. O-O-O {[%clk 00:09:26]} {[%emt 00:00:17]} Na5 {[%clk 00:11:01]}
{[%emt 00:00:44]} 17. Bc2 {[%clk 00:07:47]} {[%emt 00:01:44]} Nd6 {[%clk
00:10:55]} {[%emt 00:00:10]} 18. Qe2 {[%clk 00:05:53]} {[%emt 00:01:59]} f4
{[%clk 00:10:04]} {[%emt 00:00:57]} 19. Qh5 {[%clk 00:05:07]} {[%emt 00:00:51]}
h6 {[%clk 00:09:54]} {[%emt 00:00:14]} 20. Qg6 {[%clk 00:02:50]} {[%emt
00:02:23]} Qxg5 {[%clk 00:09:51]} {[%emt 00:00:07]} 21. Qh7+ {[%clk 00:02:16]}
{[%emt 00:00:40]} Kf7 {[%clk 00:09:51]} {[%emt 00:00:04]} 22. Bxf4 {[%clk
00:01:56]} {[%emt 00:00:25]} Qxf4+ {[%clk 00:09:53]} {[%emt 00:00:04]} 23. Kb1
{[%clk 00:01:56]} {[%emt 00:00:05]} Nf5 {[%clk 00:09:13]} {[%emt 00:00:45]} 24.
g4 {[%clk 00:01:33]} {[%emt 00:00:28]} Rh8 {[%clk 00:09:15]} {[%emt 00:00:03]}
25. gxf5 {[%clk 00:00:45]} {[%emt 00:00:53]} Rxh7 {[%clk 00:09:17]} {[%emt
00:00:03]} 26. fxe6+ {[%clk 00:00:45]} {[%emt 00:00:06]} Bxe6 {[%clk 00:09:18]}
{[%emt 00:00:03]} 27. Bxh7 {[%clk 00:00:46]} {[%emt 00:00:05]} Bf5+ {[%clk
00:09:03]} {[%emt 00:00:20]} 0-1

[Event "Rapid Tournament (RAP)"]
[Site "Biel, Switzerland"]
[Date "2026.07.12"]
[Round "3.43"]
[White "Lachat, Pierre"]
[Black "Gheorghiu, Harry"]
[Result "0-1"]
[TimeControl "15 + 5"]
[WhiteTitle "-"]
[BlackTitle "-"]
[WhiteFideId "1310763"]
[BlackFideId "1248839"]
[WhiteElo "1904"]
[BlackElo "1751"]

1. b3 {[%clk 00:15:03]} {[%emt 00:00:07]} Nf6 {[%clk 00:14:55]} {[%emt
00:00:15]} 2. Bb2 {[%clk 00:15:06]} {[%emt 00:00:02]} b6 {[%clk 00:14:59]}
{[%emt 00:00:02]} 3. e3 {[%clk 00:15:06]} {[%emt 00:00:05]} Bb7 {[%clk
00:15:01]} {[%emt 00:00:03]} 4. Nf3 {[%clk 00:15:07]} {[%emt 00:00:02]} g6
{[%clk 00:14:47]} {[%emt 00:00:20]} 5. Bc4 {[%clk 00:14:47]} {[%emt 00:00:25]}
Bg7 {[%clk 00:14:06]} {[%emt 00:00:46]} 6. O-O {[%clk 00:14:44]} {[%emt
00:00:09]} e6 {[%clk 00:13:45]} {[%emt 00:00:25]} 7. d4 {[%clk 00:14:40]}
{[%emt 00:00:09]} O-O {[%clk 00:13:01]} {[%emt 00:00:49]} 8. Nbd2 {[%clk
00:14:38]} {[%emt 00:00:07]} d5 {[%clk 00:12:29]} {[%emt 00:00:37]} 9. Bd3
{[%clk 00:14:32]} {[%emt 00:00:11]} Nbd7 {[%clk 00:12:18]} {[%emt 00:00:16]} 10.
c4 {[%clk 00:13:55]} {[%emt 00:00:43]} c6 {[%clk 00:11:46]} {[%emt 00:00:37]}
11. Rc1 {[%clk 00:13:17]} {[%emt 00:00:42]} Rc8 {[%clk 00:11:50]} {[%emt
00:00:01]} 12. Qe2 {[%clk 00:13:07]} {[%emt 00:00:16]} Qe7 {[%clk 00:11:06]}
{[%emt 00:00:48]} 13. cxd5 {[%clk 00:11:54]} {[%emt 00:01:18]} cxd5 {[%clk
00:11:09]} {[%emt 00:00:02]} 14. Nb1 {[%clk 00:11:46]} {[%emt 00:00:12]} Rfe8
{[%clk 00:09:50]} {[%emt 00:01:25]} 15. Ba3 {[%clk 00:11:11]} {[%emt 00:00:40]}
Qd8 {[%clk 00:09:37]} {[%emt 00:00:19]} 16. Ba6 {[%clk 00:09:32]} {[%emt
00:01:43]} Bxa6 {[%clk 00:08:36]} {[%emt 00:01:07]} 17. Qxa6 {[%clk 00:09:35]}
{[%emt 00:00:02]} Rxc1 {[%clk 00:08:39]} {[%emt 00:00:01]} 18. Rxc1 {[%clk
00:09:38]} {[%emt 00:00:02]} Qb8 {[%clk 00:08:43]} 19. Nc3 {[%clk 00:07:14]}
{[%emt 00:02:29]} Rc8 {[%clk 00:08:10]} {[%emt 00:00:38]} 20. Nb5 {[%clk
00:06:42]} {[%emt 00:00:38]} Rxc1+ {[%clk 00:07:43]} {[%emt 00:00:32]} 21. Bxc1
{[%clk 00:06:46]} {[%emt 00:00:01]} Ne4 {[%clk 00:07:47]} 22. Qxa7 {[%clk
00:06:01]} {[%emt 00:00:50]} Qc8 {[%clk 00:07:25]} {[%emt 00:00:27]} 23. Nc7
{[%clk 00:01:52]} {[%emt 00:04:13]} Bf8 {[%clk 00:05:37]} {[%emt 00:01:52]} 24.
Nd2 {[%clk 00:01:09]} {[%emt 00:00:49]} Bd6 {[%clk 00:04:51]} {[%emt 00:00:50]}
25. Qa8 {[%clk 00:00:53]} {[%emt 00:00:22]} Nb8 {[%clk 00:04:54]} {[%emt
00:00:03]} 26. Nb5 {[%clk 00:00:44]} {[%emt 00:00:14]} Qxc1+ {[%clk 00:04:41]}
{[%emt 00:00:17]} 27. Nf1 {[%clk 00:00:48]} Nd2 {[%clk 00:04:31]} {[%emt
00:00:15]} 0-1

[Event "Rapid Tournament (RAP)"]
[Site "Biel, Switzerland"]
[Date "2026.07.12"]
[Round "3.44"]
[White "Ziegler, Andrin"]
[Black "Alsaqer, Meshal"]
[Result "0-1"]
[TimeControl "15 + 5"]
[WhiteTitle "-"]
[BlackTitle "-"]
[WhiteFideId "1364138"]
[BlackFideId "10301771"]
[WhiteElo "1730"]
[BlackElo "1903"]

1. b3 {[%clk 00:15:08]} {[%emt 00:00:03]} d5 {[%clk 00:15:07]} {[%emt
00:00:02]} 2. Bb2 {[%clk 00:15:12]} {[%emt 00:00:01]} Nf6 {[%clk 00:15:08]}
{[%emt 00:00:04]} 3. e3 {[%clk 00:15:16]} c6 {[%clk 00:15:11]} {[%emt
00:00:03]} 4. c4 {[%clk 00:15:13]} {[%emt 00:00:08]} Bf5 {[%clk 00:14:49]}
{[%emt 00:00:27]} 5. d4 {[%clk 00:14:55]} {[%emt 00:00:23]} e6 {[%clk
00:14:34]} {[%emt 00:00:17]} 6. Nf3 {[%clk 00:14:24]} {[%emt 00:00:38]} Bb4+
{[%clk 00:14:16]} {[%emt 00:00:23]} 7. Nbd2 {[%clk 00:12:52]} {[%emt 00:01:37]}
O-O {[%clk 00:13:43]} {[%emt 00:00:37]} 8. a3 {[%clk 00:12:40]} {[%emt
00:00:19]} Bd6 {[%clk 00:13:19]} {[%emt 00:00:29]} 9. Be2 {[%clk 00:12:30]}
{[%emt 00:00:13]} h6 {[%clk 00:13:06]} {[%emt 00:00:19]} 10. O-O {[%clk
00:12:32]} {[%emt 00:00:03]} a5 {[%clk 00:12:39]} {[%emt 00:00:32]} 11. Ne5
{[%clk 00:09:51]} {[%emt 00:02:47]} Nbd7 {[%clk 00:11:47]} {[%emt 00:00:55]} 12.
Ndf3 {[%clk 00:09:51]} {[%emt 00:00:06]} Ne4 {[%clk 00:10:31]} {[%emt
00:01:22]} 13. Rc1 {[%clk 00:06:50]} {[%emt 00:03:06]} Nxe5 {[%clk 00:07:37]}
{[%emt 00:02:59]} 14. Nxe5 {[%clk 00:06:41]} {[%emt 00:00:14]} Qe7 {[%clk
00:07:17]} {[%emt 00:00:24]} 15. c5 {[%clk 00:06:29]} {[%emt 00:00:17]} Bxe5
{[%clk 00:07:09]} {[%emt 00:00:14]} 16. dxe5 {[%clk 00:06:31]} {[%emt
00:00:03]} Nxc5 {[%clk 00:06:52]} {[%emt 00:00:21]} 17. b4 {[%clk 00:05:51]}
{[%emt 00:00:46]} axb4 {[%clk 00:06:38]} {[%emt 00:00:19]} 18. axb4 {[%clk
00:05:53]} {[%emt 00:00:03]} Nd7 {[%clk 00:06:04]} {[%emt 00:00:38]} 19. b5
{[%clk 00:04:21]} {[%emt 00:01:37]} c5 {[%clk 00:05:20]} {[%emt 00:00:49]} 20.
Qb3 {[%clk 00:02:21]} {[%emt 00:02:05]} c4 {[%clk 00:04:33]} {[%emt 00:00:53]}
21. Qc3 {[%clk 00:02:24]} {[%emt 00:00:02]} Ra2 {[%clk 00:03:18]} {[%emt
00:01:19]} 22. Ra1 {[%clk 00:02:01]} {[%emt 00:00:28]} Rfa8 {[%clk 00:03:16]}
{[%emt 00:00:07]} 23. Rxa2 {[%clk 00:01:42]} {[%emt 00:00:25]} Rxa2 {[%clk
00:03:18]} {[%emt 00:00:03]} 24. Ra1 {[%clk 00:01:39]} {[%emt 00:00:08]} Rxa1+
{[%clk 00:03:09]} {[%emt 00:00:14]} 25. Bxa1 {[%clk 00:01:43]} {[%emt
00:00:01]} Qc5 {[%clk 00:02:16]} {[%emt 00:00:57]} 26. Qa5 {[%clk 00:01:03]}
{[%emt 00:00:45]} Kh7 {[%clk 00:01:53]} {[%emt 00:00:27]} 27. Bd4 {[%clk
00:01:03]} {[%emt 00:00:07]} Qc8 {[%clk 00:01:39]} {[%emt 00:00:19]} 28. Qc3
{[%clk 00:00:49]} {[%emt 00:00:19]} Nc5 {[%clk 00:01:33]} {[%emt 00:00:11]} 29.
f3 {[%clk 00:00:42]} {[%emt 00:00:12]} Bg6 {[%clk 00:01:32]} {[%emt 00:00:07]}
30. Bxc5 {[%clk 00:00:22]} {[%emt 00:00:25]} Qxc5 {[%clk 00:01:35]} {[%emt
00:00:02]} 31. Qb2 {[%clk 00:00:07]} {[%emt 00:00:26]} Qxe3+ {[%clk 00:01:38]}
{[%emt 00:00:05]} 32. Kf1 {[%clk 00:00:11]} {[%emt 00:00:01]} c3 {[%clk
00:01:32]} {[%emt 00:00:12]} 33. Qb3 {[%clk 00:00:13]} {[%emt 00:00:03]} d4
{[%clk 00:01:30]} {[%emt 00:00:08]} 0-1